[Event "Titled Tuesday Blitz January 31 Late 2023"]
[White "Pesotskiy, Mikhail"]
[Black "Taspinar, Yanki"]
[WhiteFideId "34164453"]
[BlackFideId "34561188"]
[WhiteElo "2153"]
[BlackElo "2262"]
[Result "0-1"]
[Round "04"]
[TimeControl "180+2"]
[Date "2023.01.31"]
[WhiteClock "0:00:16"]
[BlackClock "0:00:04"]

1. d4 {[%clk 0:03:00]}  Nf6 {[%clk 0:02:59]} 2. c4 {[%clk 0:03:00]}  c6 {[%clk 0:03:00]} 3. Nf3 {[%clk 0:02:57]}  d5 {[%clk 0:03:00]} 4. Nbd2 {[%clk 0:02:57]}  g6 {[%clk 0:02:59]} 5. e3 {[%clk 0:02:55]}  Bg7 {[%clk 0:02:59]} 6. Bd3 {[%clk 0:02:56]}  O-O {[%clk 0:02:59]} 7. b3 {[%clk 0:02:56]}  Bg4 {[%clk 0:02:59]} 8. O-O {[%clk 0:02:53]}  Nbd7 {[%clk 0:02:56]} 9. Bb2 {[%clk 0:02:51]}  e6 {[%clk 0:02:54]} 10. h3 {[%clk 0:02:41]}  Bxf3 {[%clk 0:02:49]} 11. Qxf3 {[%clk 0:02:36]}  Rc8 {[%clk 0:02:49]} 12. Rfd1 {[%clk 0:02:24]}  Qa5 {[%clk 0:02:45]} 13. a3 {[%clk 0:02:08]}  Qb6 {[%clk 0:02:25]} 14. b4 {[%clk 0:02:05]}  Rfe8 {[%clk 0:02:17]} 15. e4 {[%clk 0:02:04]}  dxe4 {[%clk 0:02:14]} 16. Nxe4 {[%clk 0:02:05]}  Nxe4 {[%clk 0:02:14]} 17. Bxe4 {[%clk 0:02:06]}  Nf6 {[%clk 0:02:12]} 18. Bc2 {[%clk 0:02:01]}  Qd8 {[%clk 0:02:02]} 19. Rd3 {[%clk 0:01:48]}  b5 {[%clk 0:02:01]} 20. Rad1 {[%clk 0:01:42]}  bxc4 {[%clk 0:01:49]} 21. Rc3 {[%clk 0:01:42]}  Nd5 {[%clk 0:01:37]} 22. Rxc4 {[%clk 0:01:42]}  a5 {[%clk 0:01:38]} 23. Rc1 {[%clk 0:01:19]}  Qb6 {[%clk 0:01:33]} 24. Qb3 {[%clk 0:01:07]}  Rb8 {[%clk 0:01:17]} 25. Be4 {[%clk 0:01:07]}  Rec8 {[%clk 0:00:44]} 26. Bc3 {[%clk 0:00:36]}  Bf8 {[%clk 0:00:37]} 27. Bd2 {[%clk 0:00:21]}  axb4 {[%clk 0:00:34]} 28. axb4 {[%clk 0:00:22]}  Qb5 {[%clk 0:00:23]} 29. Bd3 {[%clk 0:00:10]}  Qb6 {[%clk 0:00:23]} 30. Be4 {[%clk 0:00:10]}  Qb5 {[%clk 0:00:23]} 31. Bd3 {[%clk 0:00:10]}  Qb7 {[%clk 0:00:24]} 32. Be4 {[%clk 0:00:11]}  Bd6 {[%clk 0:00:22]} 33. g3 {[%clk 0:00:10]}  Qb5 {[%clk 0:00:17]} 34. h4 {[%clk 0:00:10]}  h5 {[%clk 0:00:15]} 35. Bd3 {[%clk 0:00:10]}  Qb6 {[%clk 0:00:15]} 36. Be4 {[%clk 0:00:10]}  Be7 {[%clk 0:00:14]} 37. Bd3 {[%clk 0:00:10]}  Bf6 {[%clk 0:00:14]} 38. Qb2 {[%clk 0:00:09]}  Qb7 {[%clk 0:00:07]} 39. Be4 {[%clk 0:00:09]}  Rc7 {[%clk 0:00:07]} 40. R1c2 {[%clk 0:00:09]}  Rbc8 {[%clk 0:00:07]} 41. Qc1 {[%clk 0:00:09]}  Ne7 {[%clk 0:00:05]} 42. Bf4 {[%clk 0:00:09]}  Rd7 {[%clk 0:00:05]} 43. Bxc6 {[%clk 0:00:09]}  Nxc6 {[%clk 0:00:05]} 44. Rxc6 {[%clk 0:00:10]}  Rxc6 {[%clk 0:00:05]} 45. Rxc6 {[%clk 0:00:11]}  Qxb4 {[%clk 0:00:05]} 46. Rc8+ {[%clk 0:00:11]}  Kg7 {[%clk 0:00:05]} 47. Qc6 {[%clk 0:00:11]}  Qxd4 {[%clk 0:00:04]} 48. Qa8 {[%clk 0:00:10]}  Qd1+ {[%clk 0:00:04]} 49. Kg2 {[%clk 0:00:10]}  Qd5+ {[%clk 0:00:04]} 50. Qxd5 {[%clk 0:00:10]}  Rxd5 {[%clk 0:00:05]} 51. Be3 {[%clk 0:00:09]}  Rf5 {[%clk 0:00:05]} 52. Rc7 {[%clk 0:00:09]}  Be5 {[%clk 0:00:05]} 53. Rb7 {[%clk 0:00:09]}  Bd6 {[%clk 0:00:05]} 54. Rd7 {[%clk 0:00:09]}  Be5 {[%clk 0:00:06]} 55. Rb7 {[%clk 0:00:10]}  Bf6 {[%clk 0:00:06]} 56. Rd7 {[%clk 0:00:10]}  Rd5 {[%clk 0:00:05]} 57. Rb7 {[%clk 0:00:10]}  Rd3 {[%clk 0:00:05]} 58. Ra7 {[%clk 0:00:09]}  Rb3 {[%clk 0:00:05]} 59. Rd7 {[%clk 0:00:09]}  Rb2 {[%clk 0:00:05]} 60. Rc7 {[%clk 0:00:09]}  Be5 {[%clk 0:00:05]} 61. Rd7 {[%clk 0:00:09]}  Kf8 {[%clk 0:00:04]} 62. Ra7 {[%clk 0:00:09]}  Ke8 {[%clk 0:00:04]} 63. Bc5 {[%clk 0:00:08]}  Rc2 {[%clk 0:00:03]} 64. Bb4 {[%clk 0:00:07]}  Bd4 {[%clk 0:00:02]} 65. Re7+ {[%clk 0:00:07]}  Kd8 {[%clk 0:00:01]} 66. Rxf7 {[%clk 0:00:07]}  e5 {[%clk 0:00:02]} 67. Bd6 {[%clk 0:00:07]}  Ke8 {[%clk 0:00:02]} 68. Rf8+ {[%clk 0:00:07]}  Kd7 {[%clk 0:00:02]} 69. Ba3 {[%clk 0:00:07]}  Ke6 {[%clk 0:00:03]} 70. Bb4 {[%clk 0:00:07]}  Kd5 {[%clk 0:00:03]} 71. Be7 {[%clk 0:00:07]}  e4 {[%clk 0:00:03]} 72. Bg5 {[%clk 0:00:07]}  e3 {[%clk 0:00:03]} 73. Rd8+ {[%clk 0:00:06]}  Kc5 {[%clk 0:00:02]} 74. Rxd4 {[%clk 0:00:07]}  Kxd4 {[%clk 0:00:03]} 75. Bxe3+ {[%clk 0:00:07]}  Ke4 {[%clk 0:00:03]} 76. Ba7 {[%clk 0:00:07]}  Ra2 {[%clk 0:00:03]} 77. Be3 {[%clk 0:00:08]}  Rb2 {[%clk 0:00:03]} 78. Bg5 {[%clk 0:00:08]}  Rc2 {[%clk 0:00:03]} 79. Be3 {[%clk 0:00:09]}  Kf5 {[%clk 0:00:04]} 80. Bg5 {[%clk 0:00:10]}  Ra2 {[%clk 0:00:04]} 81. Be3 {[%clk 0:00:11]}  Ke4 {[%clk 0:00:05]} 82. Bg5 {[%clk 0:00:12]}  Kd3 {[%clk 0:00:05]} 83. Be3 {[%clk 0:00:12]}  Ke2 {[%clk 0:00:06]} 84. Bb6 {[%clk 0:00:13]}  Ke1 {[%clk 0:00:07]} 85. Be3 {[%clk 0:00:13]}  Rc2 {[%clk 0:00:07]} 86. Bb6 {[%clk 0:00:13]}  Rb2 {[%clk 0:00:07]} 87. Be3 {[%clk 0:00:14]}  Ke2 {[%clk 0:00:06]} 88. Ba7 {[%clk 0:00:14]}  Ra2 {[%clk 0:00:06]} 89. Bc5 {[%clk 0:00:13]}  Kd3 {[%clk 0:00:06]} 90. Bb6 {[%clk 0:00:14]}  Rc2 {[%clk 0:00:05]} 91. Be3 {[%clk 0:00:14]}  Ke4 {[%clk 0:00:06]} 92. Bg5 {[%clk 0:00:14]}  Rc3 {[%clk 0:00:04]} 93. Bh6 {[%clk 0:00:14]}  Rb3 {[%clk 0:00:04]} 94. Bg5 {[%clk 0:00:15]}  Kd3 {[%clk 0:00:05]} 95. Bh6 {[%clk 0:00:16]}  Ke2 {[%clk 0:00:05]} 96. Bg5 {[%clk 0:00:17]}  Ke1 {[%clk 0:00:06]} 97. Be3 {[%clk 0:00:16]}  Rb5 {[%clk 0:00:04]} 98. Bh6 {[%clk 0:00:16]}  Rf5 {[%clk 0:00:03]} 99. Be3 {[%clk 0:00:17]}  Ke2 {[%clk 0:00:03]} 100. Ba7 {[%clk 0:00:17]}  g5 {[%clk 0:00:03]} 101. hxg5 {[%clk 0:00:17]}  Rxg5 {[%clk 0:00:04]} 102. Be3 {[%clk 0:00:18]}  Rf5 {[%clk 0:00:04]} 103. Bf4 {[%clk 0:00:18]}  Kd3 {[%clk 0:00:04]} 104. Be3 {[%clk 0:00:18]}  Ke4 {[%clk 0:00:05]} 105. Ba7 {[%clk 0:00:18]}  Rf3 {[%clk 0:00:05]} 106. Bb6 {[%clk 0:00:18]}  Rb3 {[%clk 0:00:05]} 107. Be3 {[%clk 0:00:18]}  Kf5 {[%clk 0:00:06]} 108. Ba7 {[%clk 0:00:18]}  Kg4 {[%clk 0:00:06]} 109. Be3 {[%clk 0:00:19]}  Rd3 {[%clk 0:00:05]} 110. Ba7 {[%clk 0:00:19]}  h4 {[%clk 0:00:05]} 111. gxh4 {[%clk 0:00:20]}  Kxh4 {[%clk 0:00:06]} 112. Be3 {[%clk 0:00:21]}  Kg4 {[%clk 0:00:06]} 113. Ba7 {[%clk 0:00:21]}  Rd7 {[%clk 0:00:06]} 114. Be3 {[%clk 0:00:22]}  Rg7 {[%clk 0:00:07]} 115. Bb6 {[%clk 0:00:23]}  Kf4+ {[%clk 0:00:07]} 116. Kf1 {[%clk 0:00:19]}  Kf3 {[%clk 0:00:07]} 117. Be3 {[%clk 0:00:19]}  Rb7 {[%clk 0:00:07]} 118. Kg1 {[%clk 0:00:19]}  Rb1+ {[%clk 0:00:05]} 119. Kh2 {[%clk 0:00:20]}  Rb5 {[%clk 0:00:05]} 120. Kg1 {[%clk 0:00:19]}  Rh5 {[%clk 0:00:06]} 121. Bb6 {[%clk 0:00:18]}  Rh6 {[%clk 0:00:06]} 122. Be3 {[%clk 0:00:18]}  Rh8 {[%clk 0:00:05]} 123. Bb6 {[%clk 0:00:17]}  Rg8+ {[%clk 0:00:05]} 124. Kh1 {[%clk 0:00:16]}  Kg4 {[%clk 0:00:05]} 125. Be3 {[%clk 0:00:15]}  Kh3 {[%clk 0:00:05]} 126. Bb6 {[%clk 0:00:16]}  Rb8 {[%clk 0:00:04]} 0-1


[Site "https://www.chess.com"]

[Event "Titled Tuesday Blitz January 31 Late 2023"]
[White "Garrido, Denis"]
[Black "Vlassov, Nikolai"]
[WhiteFideId "601217"]
[BlackFideId "4103360"]
[WhiteElo "2205"]
[BlackElo "2283"]
[Result "0-1"]
[Round "04"]
[TimeControl "180+2"]
[Date "2023.01.31"]
[WhiteClock "0:01:10"]
[BlackClock "0:01:43"]

1. e4 {[%clk 0:03:00]}  c5 {[%clk 0:02:59]} 2. Nf3 {[%clk 0:03:00]}  d6 {[%clk 0:02:59]} 3. d4 {[%clk 0:03:00]}  cxd4 {[%clk 0:02:59]} 4. Nxd4 {[%clk 0:03:01]}  Nf6 {[%clk 0:02:59]} 5. Nc3 {[%clk 0:03:01]}  g6 {[%clk 0:03:00]} 6. Be3 {[%clk 0:03:01]}  a6 {[%clk 0:03:00]} 7. f3 {[%clk 0:03:01]}  Nbd7 {[%clk 0:03:00]} 8. Qd2 {[%clk 0:03:01]}  Qc7 {[%clk 0:03:00]} 9. Be2 {[%clk 0:02:57]}  h5 {[%clk 0:02:58]} 10. h4 {[%clk 0:02:56]}  Bg7 {[%clk 0:02:58]} 11. O-O {[%clk 0:02:50]}  O-O {[%clk 0:02:57]} 12. Rfe1 {[%clk 0:02:48]}  b5 {[%clk 0:02:57]} 13. a4 {[%clk 0:02:48]}  b4 {[%clk 0:02:57]} 14. Na2 {[%clk 0:02:45]}  a5 {[%clk 0:02:56]} 15. c3 {[%clk 0:02:42]}  bxc3 {[%clk 0:02:56]} 16. Nxc3 {[%clk 0:02:42]}  Ne5 {[%clk 0:02:51]} 17. Ncb5 {[%clk 0:02:41]}  Qb7 {[%clk 0:02:43]} 18. Rac1 {[%clk 0:02:37]}  Bd7 {[%clk 0:02:34]} 19. Rc7 {[%clk 0:02:35]}  Qb8 {[%clk 0:02:35]} 20. Rec1 {[%clk 0:02:33]}  Rc8 {[%clk 0:02:29]} 21. Rxc8+ {[%clk 0:02:19]}  Bxc8 {[%clk 0:02:29]} 22. f4 {[%clk 0:01:46]}  Neg4 {[%clk 0:02:19]} 23. Nc6 {[%clk 0:01:46]}  Qb7 {[%clk 0:02:16]} 24. Nxa5 {[%clk 0:01:24]}  Rxa5 {[%clk 0:02:12]} 25. Qxa5 {[%clk 0:01:25]}  Nxe3 {[%clk 0:02:11]} 26. Qd8+ {[%clk 0:01:25]}  Kh7 {[%clk 0:02:08]} 27. Rxc8 {[%clk 0:01:23]}  Qxe4 {[%clk 0:02:04]} 28. Bf3 {[%clk 0:01:20]}  Qb1+ {[%clk 0:01:57]} 29. Kh2 {[%clk 0:01:18]}  Nfg4+ {[%clk 0:01:56]} 30. Bxg4 {[%clk 0:01:15]}  Nxg4+ {[%clk 0:01:56]} 31. Kh3 {[%clk 0:01:11]}  Qd3+ {[%clk 0:01:43]} 32. g3 {[%clk 0:01:10]}  Qf1# {[%clk 0:01:43]} 0-1


[Site "https://www.chess.com"]

[Event "Titled Tuesday Blitz January 31 Late 2023"]
[White "Sohier, Julien"]
[Black "Leiva, Gianmarco"]
[WhiteFideId "645346"]
[BlackFideId "3804399"]
[WhiteElo "2214"]
[BlackElo "2392"]
[Result "1/2-1/2"]
[Round "04"]
[TimeControl "180+2"]
[Date "2023.01.31"]
[WhiteClock "0:00:09"]
[BlackClock "0:00:11"]

1. e4 {[%clk 0:03:00]}  c5 {[%clk 0:02:59]} 2. Nc3 {[%clk 0:02:58]}  Nc6 {[%clk 0:02:59]} 3. Bb5 {[%clk 0:02:57]}  Nd4 {[%clk 0:02:56]} 4. Nf3 {[%clk 0:02:57]}  a6 {[%clk 0:02:55]} 5. Bd3 {[%clk 0:02:56]}  e6 {[%clk 0:02:54]} 6. O-O {[%clk 0:02:54]}  Nc6 {[%clk 0:02:48]} 7. Nd5 {[%clk 0:02:50]}  d6 {[%clk 0:02:36]} 8. Re1 {[%clk 0:02:47]}  exd5 {[%clk 0:02:31]} 9. exd5+ {[%clk 0:02:47]}  Nce7 {[%clk 0:02:19]} 10. b4 {[%clk 0:02:42]}  Nf6 {[%clk 0:02:08]} 11. c4 {[%clk 0:02:39]}  g6 {[%clk 0:01:56]} 12. Bb2 {[%clk 0:02:38]}  Bg7 {[%clk 0:01:56]} 13. Qe2 {[%clk 0:02:39]}  Kf8 {[%clk 0:01:56]} 14. bxc5 {[%clk 0:02:07]}  dxc5 {[%clk 0:01:56]} 15. Ne5 {[%clk 0:01:30]}  Bf5 {[%clk 0:01:56]} 16. Qf3 {[%clk 0:01:16]}  h5 {[%clk 0:01:50]} 17. h3 {[%clk 0:01:05]}  Nd7 {[%clk 0:01:41]} 18. d6 {[%clk 0:00:21]}  Nxe5 {[%clk 0:01:40]} 19. dxe7+ {[%clk 0:00:20]}  Qxe7 {[%clk 0:01:41]} 20. Bxe5 {[%clk 0:00:18]}  Bxe5 {[%clk 0:01:41]} 21. Bxf5 {[%clk 0:00:18]}  Qf6 {[%clk 0:01:36]} 22. Qxb7 {[%clk 0:00:16]}  Rb8 {[%clk 0:01:17]} 23. Qa7 {[%clk 0:00:13]}  Qxf5 {[%clk 0:01:09]} 24. Qxc5+ {[%clk 0:00:12]}  Bd6 {[%clk 0:00:39]} 25. Qxd6+ {[%clk 0:00:11]}  Kg7 {[%clk 0:00:39]} 26. Qe5+ {[%clk 0:00:11]}  Qxe5 {[%clk 0:00:40]} 27. Rxe5 {[%clk 0:00:12]}  Rhd8 {[%clk 0:00:41]} 28. Rd1 {[%clk 0:00:10]}  Rb2 {[%clk 0:00:41]} 29. d4 {[%clk 0:00:10]}  Rxa2 {[%clk 0:00:42]} 30. d5 {[%clk 0:00:10]}  Rc2 {[%clk 0:00:42]} 31. Re4 {[%clk 0:00:10]}  a5 {[%clk 0:00:43]} 32. d6 {[%clk 0:00:09]}  a4 {[%clk 0:00:43]} 33. d7 {[%clk 0:00:09]}  a3 {[%clk 0:00:43]} 34. Re8 {[%clk 0:00:09]}  Rxd7 {[%clk 0:00:39]} 35. Rxd7 {[%clk 0:00:10]}  Rc1+ {[%clk 0:00:39]} 36. Kh2 {[%clk 0:00:10]}  a2 {[%clk 0:00:40]} 37. Ra7 {[%clk 0:00:10]}  a1=Q {[%clk 0:00:40]} 38. Rxa1 {[%clk 0:00:11]}  Rxa1 {[%clk 0:00:41]} 39. Rc8 {[%clk 0:00:11]}  Rc1 {[%clk 0:00:41]} 40. c5 {[%clk 0:00:11]}  h4 {[%clk 0:00:42]} 41. g3 {[%clk 0:00:11]}  hxg3+ {[%clk 0:00:42]} 42. Kxg3 {[%clk 0:00:12]}  Rc3+ {[%clk 0:00:42]} 43. f3 {[%clk 0:00:11]}  Kf6 {[%clk 0:00:42]} 44. Kf4 {[%clk 0:00:10]}  Ke7 {[%clk 0:00:40]} 45. h4 {[%clk 0:00:10]}  Rc4+ {[%clk 0:00:39]} 46. Kg5 {[%clk 0:00:09]}  Kd7 {[%clk 0:00:37]} 47. Rf8 {[%clk 0:00:09]}  Ke7 {[%clk 0:00:37]} 48. Rc8 {[%clk 0:00:08]}  Kd7 {[%clk 0:00:37]} 49. Ra8 {[%clk 0:00:05]}  Rxc5+ {[%clk 0:00:37]} 50. Kg4 {[%clk 0:00:06]}  Ke7 {[%clk 0:00:36]} 51. Ra7+ {[%clk 0:00:06]}  Kf6 {[%clk 0:00:36]} 52. Ra6+ {[%clk 0:00:06]}  Kg7 {[%clk 0:00:37]} 53. Ra7 {[%clk 0:00:07]}  Rc1 {[%clk 0:00:36]} 54. Kg3 {[%clk 0:00:07]}  Rg1+ {[%clk 0:00:36]} 55. Kh2 {[%clk 0:00:07]}  Rf1 {[%clk 0:00:35]} 56. Kg2 {[%clk 0:00:07]}  Rb1 {[%clk 0:00:35]} 57. Kg3 {[%clk 0:00:07]}  Rb4 {[%clk 0:00:33]} 58. Kh3 {[%clk 0:00:07]}  Rf4 {[%clk 0:00:32]} 59. Kg3 {[%clk 0:00:07]}  Rf5 {[%clk 0:00:32]} 60. Kg4 {[%clk 0:00:07]}  Kh6 {[%clk 0:00:33]} 61. Ra6 {[%clk 0:00:07]}  Rb5 {[%clk 0:00:31]} 62. Kg3 {[%clk 0:00:07]}  Rb1 {[%clk 0:00:30]} 63. Rf6 {[%clk 0:00:06]}  Rb7 {[%clk 0:00:29]} 64. Ra6 {[%clk 0:00:06]}  Rb1 {[%clk 0:00:25]} 65. Ra5 {[%clk 0:00:06]}  Rg1+ {[%clk 0:00:24]} 66. Kh2 {[%clk 0:00:06]}  Rd1 {[%clk 0:00:23]} 67. Kg2 {[%clk 0:00:07]}  f5 {[%clk 0:00:20]} 68. Kg3 {[%clk 0:00:07]}  Rg1+ {[%clk 0:00:18]} 69. Kh2 {[%clk 0:00:06]}  Rf1 {[%clk 0:00:18]} 70. Kg2 {[%clk 0:00:07]}  Rb1 {[%clk 0:00:18]} 71. Ra8 {[%clk 0:00:07]}  Rb2+ {[%clk 0:00:17]} 72. Kg3 {[%clk 0:00:07]}  Rb3 {[%clk 0:00:18]} 73. Rh8+ {[%clk 0:00:06]}  Kg7 {[%clk 0:00:18]} 74. Ra8 {[%clk 0:00:07]}  Rb4 {[%clk 0:00:19]} 75. Ra7+ {[%clk 0:00:07]}  Kh6 {[%clk 0:00:19]} 76. Ra8 {[%clk 0:00:08]}  Rc4 {[%clk 0:00:19]} 77. Rh8+ {[%clk 0:00:07]}  Kg7 {[%clk 0:00:19]} 78. Ra8 {[%clk 0:00:08]}  Rc1 {[%clk 0:00:20]} 79. Ra7+ {[%clk 0:00:08]}  Kh6 {[%clk 0:00:20]} 80. Ra8 {[%clk 0:00:09]}  Rg1+ {[%clk 0:00:21]} 81. Kh2 {[%clk 0:00:09]}  Rf1 {[%clk 0:00:19]} 82. Kg2 {[%clk 0:00:09]}  Rb1 {[%clk 0:00:19]} 83. Rh8+ {[%clk 0:00:09]}  Kg7 {[%clk 0:00:19]} 84. Ra8 {[%clk 0:00:10]}  Rb4 {[%clk 0:00:19]} 85. Kg3 {[%clk 0:00:10]}  Rb7 {[%clk 0:00:19]} 86. Rc8 {[%clk 0:00:10]}  Rf7 {[%clk 0:00:17]} 87. Ra8 {[%clk 0:00:10]}  Rb7 {[%clk 0:00:17]} 88. Rc8 {[%clk 0:00:10]}  Rb1 {[%clk 0:00:17]} 89. Ra8 {[%clk 0:00:10]}  Rg1+ {[%clk 0:00:15]} 90. Kh2 {[%clk 0:00:10]}  Re1 {[%clk 0:00:15]} 91. Kg2 {[%clk 0:00:10]}  Re7 {[%clk 0:00:15]} 92. Kg3 {[%clk 0:00:10]}  Kf6 {[%clk 0:00:14]} 93. Ra6+ {[%clk 0:00:10]}  Kf7 {[%clk 0:00:14]} 94. Ra8 {[%clk 0:00:10]}  Kg7 {[%clk 0:00:14]} 95. Kg2 {[%clk 0:00:09]}  Rd7 {[%clk 0:00:12]} 96. Rb8 {[%clk 0:00:09]}  Rd4 {[%clk 0:00:11]} 97. Kg3 {[%clk 0:00:09]}  Rc4 {[%clk 0:00:12]} 98. Ra8 {[%clk 0:00:09]}  Rc1 {[%clk 0:00:11]} 99. Ra7+ {[%clk 0:00:09]}  Kh6 {[%clk 0:00:12]} 100. Ra8 {[%clk 0:00:09]}  Rg1+ {[%clk 0:00:10]} 101. Kh2 {[%clk 0:00:10]}  Rc1 {[%clk 0:00:11]} 102. Kg3 {[%clk 0:00:09]} 1/2-1/2


[Site "https://www.chess.com"]

[Event "Titled Tuesday Blitz January 31 Late 2023"]
[White "Naroditsky, Daniel"]
[Black "CheckBits"]
[WhiteFideId "2026961"]
[WhiteElo "2618"]
[BlackElo "2478"]
[Result "1-0"]
[Round "04"]
[TimeControl "180+2"]
[Date "2023.01.31"]
[WhiteClock "0:02:15"]
[BlackClock "0:00:02"]

1. e4 {[%clk 0:03:00]}  e5 {[%clk 0:02:57]} 2. Nf3 {[%clk 0:03:01]}  Nc6 {[%clk 0:02:55]} 3. Bb5 {[%clk 0:03:01]}  Nf6 {[%clk 0:02:55]} 4. O-O {[%clk 0:03:02]}  Nxe4 {[%clk 0:02:53]} 5. d4 {[%clk 0:03:02]}  Nd6 {[%clk 0:02:53]} 6. Ba4 {[%clk 0:03:03]}  e4 {[%clk 0:02:39]} 7. Ne5 {[%clk 0:03:03]}  Be7 {[%clk 0:02:37]} 8. Nc3 {[%clk 0:03:03]}  O-O {[%clk 0:02:36]} 9. Re1 {[%clk 0:03:04]}  Re8 {[%clk 0:02:33]} 10. Nd5 {[%clk 0:02:52]}  Bf6 {[%clk 0:02:26]} 11. Ng4 {[%clk 0:02:40]}  Be7 {[%clk 0:02:19]} 12. Bb3 {[%clk 0:02:37]}  Bf8 {[%clk 0:02:00]} 13. Bf4 {[%clk 0:02:35]}  b5 {[%clk 0:01:50]} 14. Qd2 {[%clk 0:02:35]}  a5 {[%clk 0:01:48]} 15. Bg5 {[%clk 0:02:35]}  Be7 {[%clk 0:01:40]} 16. Nxe7+ {[%clk 0:02:33]}  Nxe7 {[%clk 0:01:39]} 17. Nf6+ {[%clk 0:02:29]}  Kh8 {[%clk 0:01:02]} 18. Nxe8 {[%clk 0:02:27]}  Qxe8 {[%clk 0:01:01]} 19. c3 {[%clk 0:02:16]}  f6 {[%clk 0:00:58]} 20. Bf4 {[%clk 0:02:15]}  Nef5 {[%clk 0:00:54]} 21. Bc2 {[%clk 0:02:15]}  Bb7 {[%clk 0:00:54]} 22. f3 {[%clk 0:02:15]}  Qg6 {[%clk 0:00:47]} 23. fxe4 {[%clk 0:02:14]}  Nh4 {[%clk 0:00:47]} 24. Qf2 {[%clk 0:02:13]}  Bxe4 {[%clk 0:00:07]} 25. Rxe4 {[%clk 0:02:13]}  Nxe4 {[%clk 0:00:06]} 26. Qxh4 {[%clk 0:02:13]}  d5 {[%clk 0:00:04]} 27. Bxc7 {[%clk 0:02:13]}  b4 {[%clk 0:00:02]} 28. Re1 {[%clk 0:02:13]}  bxc3 {[%clk 0:00:02]} 29. bxc3 {[%clk 0:02:14]}  Rc8 {[%clk 0:00:02]} 30. Bxe4 {[%clk 0:02:14]}  dxe4 {[%clk 0:00:02]} 31. Qxe4 {[%clk 0:02:15]} 1-0


[Site "https://www.chess.com"]

[Event "Titled Tuesday Blitz January 31 Late 2023"]
[White "Roux, Baptiste"]
[Black "Bortnyk, Olexandr"]
[WhiteFideId "36017450"]
[BlackFideId "14120828"]
[WhiteElo "2300"]
[BlackElo "2605"]
[Result "0-1"]
[Round "04"]
[TimeControl "180+2"]
[Date "2023.01.31"]
[WhiteClock "0:00:07"]
[BlackClock "0:01:33"]

1. e4 {[%clk 0:03:00]}  Nf6 {[%clk 0:02:56]} 2. e5 {[%clk 0:03:00]}  Nd5 {[%clk 0:02:49]} 3. c4 {[%clk 0:03:00]}  Nb6 {[%clk 0:02:37]} 4. d4 {[%clk 0:02:54]}  d6 {[%clk 0:02:37]} 5. exd6 {[%clk 0:02:55]}  exd6 {[%clk 0:02:34]} 6. Nc3 {[%clk 0:02:53]}  Be7 {[%clk 0:02:32]} 7. Bd3 {[%clk 0:02:46]}  O-O {[%clk 0:02:30]} 8. Nge2 {[%clk 0:02:47]}  c6 {[%clk 0:02:29]} 9. O-O {[%clk 0:02:45]}  Na6 {[%clk 0:02:30]} 10. b3 {[%clk 0:02:43]}  d5 {[%clk 0:02:28]} 11. c5 {[%clk 0:02:43]}  Nd7 {[%clk 0:02:28]} 12. Bf4 {[%clk 0:02:39]}  Nc7 {[%clk 0:02:28]} 13. Bg3 {[%clk 0:02:34]}  g6 {[%clk 0:02:21]} 14. b4 {[%clk 0:02:19]}  a6 {[%clk 0:02:19]} 15. a4 {[%clk 0:02:19]}  Ne6 {[%clk 0:02:20]} 16. b5 {[%clk 0:02:16]}  Bf6 {[%clk 0:02:16]} 17. bxc6 {[%clk 0:02:06]}  bxc6 {[%clk 0:02:17]} 18. Bc2 {[%clk 0:02:06]}  Re8 {[%clk 0:02:16]} 19. Re1 {[%clk 0:01:58]}  a5 {[%clk 0:02:16]} 20. Bd6 {[%clk 0:01:52]}  Ba6 {[%clk 0:02:16]} 21. h3 {[%clk 0:01:47]}  Nxd4 {[%clk 0:02:14]} 22. Nxd4 {[%clk 0:01:40]}  Rxe1+ {[%clk 0:02:15]} 23. Qxe1 {[%clk 0:01:39]}  Bxd4 {[%clk 0:02:16]} 24. Rd1 {[%clk 0:01:39]}  Bxc5 {[%clk 0:02:15]} 25. Bf4 {[%clk 0:01:17]}  Qf6 {[%clk 0:02:13]} 26. Qd2 {[%clk 0:01:15]}  Bb4 {[%clk 0:02:09]} 27. Nxd5 {[%clk 0:01:08]}  cxd5 {[%clk 0:02:07]} 28. Qxd5 {[%clk 0:01:09]}  Rc8 {[%clk 0:01:43]} 29. Bg5 {[%clk 0:00:27]}  Qe5 {[%clk 0:01:38]} 30. Qxd7 {[%clk 0:00:20]}  Qxg5 {[%clk 0:01:38]} 31. Bb3 {[%clk 0:00:19]}  Qf6 {[%clk 0:01:34]} 32. Rd5 {[%clk 0:00:08]}  Rc1+ {[%clk 0:01:33]} 33. Kh2 {[%clk 0:00:07]}  Qf4+ {[%clk 0:01:33]} 0-1


[Site "https://www.chess.com"]

[Event "Titled Tuesday Blitz January 31 Late 2023"]
[White "Do Valle Cardoso, Lucas"]
[Black "Bambino Filho, Antonio Carlos"]
[WhiteFideId "2163144"]
[BlackFideId "2113163"]
[WhiteElo "2250"]
[BlackElo "2144"]
[Result "0-1"]
[Round "04"]
[TimeControl "180+2"]
[Date "2023.01.31"]
[WhiteClock "0:01:21"]
[BlackClock "0:01:05"]

1. e4 {[%clk 0:03:00]}  g6 {[%clk 0:02:59]} 2. d4 {[%clk 0:03:01]}  Bg7 {[%clk 0:02:58]} 3. Nc3 {[%clk 0:03:01]}  d6 {[%clk 0:02:58]} 4. Be3 {[%clk 0:03:01]}  c6 {[%clk 0:02:58]} 5. Qd2 {[%clk 0:03:01]}  b5 {[%clk 0:02:59]} 6. h4 {[%clk 0:03:00]}  h5 {[%clk 0:02:58]} 7. Nf3 {[%clk 0:03:00]}  Nd7 {[%clk 0:02:59]} 8. Ng5 {[%clk 0:03:00]}  Nb6 {[%clk 0:02:59]} 9. f3 {[%clk 0:03:00]}  e6 {[%clk 0:03:00]} 10. a4 {[%clk 0:02:57]}  b4 {[%clk 0:03:00]} 11. Nd1 {[%clk 0:02:58]}  a5 {[%clk 0:03:00]} 12. Nf2 {[%clk 0:02:58]}  Ne7 {[%clk 0:02:59]} 13. Nfh3 {[%clk 0:02:56]}  d5 {[%clk 0:02:59]} 14. e5 {[%clk 0:02:49]}  Ba6 {[%clk 0:02:57]} 15. Bxa6 {[%clk 0:02:49]}  Rxa6 {[%clk 0:02:58]} 16. Qd3 {[%clk 0:02:47]}  Ra8 {[%clk 0:02:58]} 17. b3 {[%clk 0:02:45]}  Qc8 {[%clk 0:02:49]} 18. c3 {[%clk 0:02:37]}  bxc3 {[%clk 0:02:31]} 19. Rc1 {[%clk 0:02:37]}  c5 {[%clk 0:02:30]} 20. dxc5 {[%clk 0:02:36]}  Nd7 {[%clk 0:02:29]} 21. f4 {[%clk 0:02:30]}  Nxc5 {[%clk 0:02:26]} 22. Qxc3 {[%clk 0:02:30]}  Nd7 {[%clk 0:02:08]} 23. Qxc8+ {[%clk 0:02:26]}  Rxc8 {[%clk 0:02:09]} 24. Rxc8+ {[%clk 0:02:25]}  Nxc8 {[%clk 0:02:10]} 25. Ke2 {[%clk 0:02:17]}  O-O {[%clk 0:02:00]} 26. Rc1 {[%clk 0:02:17]}  Rd8 {[%clk 0:01:50]} 27. Rc7 {[%clk 0:02:12]}  Bf8 {[%clk 0:01:48]} 28. Ra7 {[%clk 0:01:58]}  Bb4 {[%clk 0:01:44]} 29. Nf2 {[%clk 0:01:56]}  Ncb6 {[%clk 0:01:41]} 30. Nxf7 {[%clk 0:01:52]}  Rc8 {[%clk 0:01:34]} 31. Ng5 {[%clk 0:01:26]}  Rc2+ {[%clk 0:01:24]} 32. Kf3 {[%clk 0:01:27]}  Rc3 {[%clk 0:01:13]} 33. Nxe6 {[%clk 0:01:26]}  Bc5 {[%clk 0:01:06]} 34. Nxc5 {[%clk 0:01:23]}  d4 {[%clk 0:01:07]} 35. Nxd7 {[%clk 0:01:21]}  Rxe3# {[%clk 0:01:05]} 0-1


[Site "https://www.chess.com"]